fUSD/lending_fUSD_20250620
["ID","MTS","AMOUNT","RATE_DAILY","PERIOD"]
[366800734,1750462276676,-490.0,0.00025205,4]
[366800735,1750462276686,-419.62,0.00025205,4]
[366800736,1750462276696,-490.0,0.00025205,4]
[366800737,1750462276706,-490.0,0.00025205,4]
[366800738,1750462276716,-625.42,0.00025205,4]
[366800739,1750462276726,-490.0,0.00025205,4]
[366800740,1750462276737,-490.0,0.00025205,4]
[366800741,1750462276747,-490.0,0.00025205,4]
[366800742,1750462276757,-490.0,0.00025205,4]
[366800743,1750462276767,-490.0,0.00025205,4]
[366800744,1750462276777,-490.0,0.00025205,4]
[366800745,1750462276787,-490.0,0.00025205,4]
[366800746,1750462276798,-425.26881442,0.00025205,4]
[366800747,1750462276808,-151.0,0.00025205,7]
[366800748,1750462276818,-490.0,0.00025205,4]
[366800749,1750462276829,-534.77,0.00025205,4]
[366800750,1750462276839,-490.0,0.00025205,4]
[366800751,1750462276849,-490.0,0.00025205,4]
[366800752,1750462276859,-490.0,0.00025205,4]
[366800753,1750462276869,-151.0,0.00025205,7]
[366800754,1750462277039,-10404.34,0.00025205,4]
[366800755,1750462277050,-490.0,0.00025205,4]
[366800756,1750462277060,-490.0,0.00025205,4]
[366800757,1750462277070,-1225.94,0.00025205,4]
[366800758,1750462277080,-490.0,0.00025205,4]
[366800759,1750462277090,-519.97,0.00025205,4]
[366800760,1750462277099,-490.0,0.00025205,4]
[366800761,1750462277109,-1531.22,0.00025205,4]
[366800762,1750462277119,-885.36,0.00025205,4]
[366800763,1750462277128,-490.0,0.00025205,4]
[366800764,1750462277139,-490.0,0.00025205,4]
[366800765,1750462277149,-490.0,0.00025205,4]
[366800766,1750462277159,-528.60530066,0.00025205,4]
[366800767,1750462277168,-490.0,0.00025205,4]
[366800768,1750462277178,-388.66404172,0.00025205,4]
[366800769,1750462277187,-490.0,0.00025205,4]
[366800770,1750462277197,-490.0,0.00025205,4]
[366800771,1750462277206,-490.0,0.00025205,4]
[366800772,1750462277216,-490.0,0.00025205,4]
[366800773,1750462277226,-490.0,0.00025205,4]
[366800774,1750462277236,-490.0,0.00025205,4]
[366800775,1750462277246,-490.0,0.00025205,4]
[366800776,1750462277255,-2514.33,0.00025205,4]
[366800777,1750462277265,-490.0,0.00025205,4]
[366800778,1750462277275,-490.0,0.00025205,4]
[366800779,1750462277285,-490.0,0.00025205,4]
[366800780,1750462277296,-151.0,0.00025205,7]
[366800781,1750462277305,-490.0,0.00025205,4]
[366800782,1750462277315,-490.0,0.00025205,4]
[366800783,1750462277325,-507.68,0.00025205,4]
[366800784,1750462277335,-490.0,0.00025205,4]
[366800785,1750462277345,-490.0,0.00025205,4]
[366800786,1750462277355,-657.32,0.00025205,4]
[366800787,1750462277364,-281.34059403,0.00025205,4]
[366800788,1750462277843,-208.65940597,0.00025205,4]
[366800789,1750462277853,-163.26,0.00025205,4]
[366800790,1750462277863,-1082.2,0.00025205,4]
[366800791,1750462277872,-490.0,0.00025205,4]
[366800792,1750462277882,-490.0,0.00025205,4]
[366800793,1750462277893,-490.0,0.00025205,4]
[366800794,1750462277903,-490.0,0.00025205,4]
[366800795,1750462277912,-490.0,0.00025205,4]
[366800796,1750462277922,-3687.02,0.00025205,4]
[366800797,1750462277931,-176.003617,0.00025207,7]
[366800798,1750462277942,-176.003617,0.00025207,7]
[366800799,1750462277953,-834.11677829,0.0002521,7]
[366800800,1750462277963,-168.0,0.00025214,2]
[366800801,1750462277972,-417.9121673,0.00025221,2]
[366800802,1750462277983,-240.77227,0.0002525,2]
[366800803,1750462277993,-430.05333863,0.00025253,2]
[366800804,1750462278004,-232.1921749,0.00025273,2]
[366800805,1750462278013,-500.78534006,0.00025273,2]
[366800806,1750462278023,-500.0,0.00025273,2]
[366800807,1750462278033,-500.0,0.00025273,2]
[366800808,1750462278043,-151.0,0.00025273,7]
[366800809,1750462278053,-151.0,0.00025273,7]
[366800810,1750462278063,-5877.70597935,0.00025278,2]
[366800811,1750462278074,-151.0,0.0002528,7]
[366800812,1750462278083,-151.0,0.0002528,7]
[366800813,1750462278093,-676.487734,0.0002528,7]
[366800814,1750462278102,-676.487734,0.0002528,7]
[366800815,1750462278112,-575.46347516,0.00025293,3]
[366800816,1750462278122,-200.95045103,0.00025293,3]
[366800817,1750462278131,-154.0,0.00025293,3]
[366800818,1750462278141,-154.0,0.00025293,3]
[366800819,1750462278150,-154.0,0.00025293,3]
[366800820,1750462278160,-154.60159568,0.00025293,3]
[366800821,1750462278170,-18349.72,0.000253,2]
[366800822,1750462278180,-151.0,0.000253,7]
[366800823,1750462278189,-247.742404,0.000253,7]
[366800824,1750462278199,-309.715955,0.000253,7]
[366800825,1750462278209,-309.715955,0.000253,7]
[366800826,1750462278219,-250.050706,0.000253,7]
[366800827,1750462278229,-430.05333863,0.00025302,2]
[366800828,1750462278239,-300.0,0.00025304,2]
[366800829,1750462278249,-1620.49481062,0.00025348,13]
[366800830,1750462278259,-1000.0,0.0002535,2]
[366800831,1750462278269,-430.05333863,0.00025352,2]
[366800832,1750462278278,-168.0,0.00025356,2]
[366800833,1750462278288,-168.0,0.00025373,2]
[366800834,1750462278298,-500.0,0.00025378,4]
[366800835,1750462278308,-2110.0,0.00025399,2]
[366800836,1750462278318,-430.05333863,0.00025402,2]
[366800837,1750462278328,-215.0738,0.00025406,2]
[366800838,1750462278338,-200.0,0.00025432,2]
[366800839,1750462278348,-200.0,0.00025432,2]
[366800840,1750462278357,-168.0,0.00025435,2]
[366800841,1750462278367,-430.05333863,0.00025451,2]
[366800842,1750462278377,-228.072477,0.00025452,7]
[366800843,1750462278387,-228.072477,0.00025452,7]
[366800844,1750462278397,-151.0,0.00025452,7]
[366800845,1750462278407,-151.0,0.00025452,7]
[366800846,1750462278417,-302.35099,0.00025452,7]
[366800847,1750462278427,-302.35099,0.00025452,7]
[366800848,1750462278437,-5877.70597935,0.00025459,2]
[366800849,1750462278446,-4414.33,0.0002547,2]
[366800850,1750462278456,-174.0,0.00025476,3]
[366800851,1750462278466,-174.0,0.00025476,3]
[366800852,1750462278476,-193.30800812,0.00025476,3]
[366800853,1750462278485,-500.0,0.00025477,2]
[366800854,1750462278495,-510.65,0.00025477,4]
[366800855,1750462278506,-490.0,0.00025478,4]
[366800856,1750462278516,-490.0,0.00025478,4]
[366800857,1750462278525,-490.0,0.00025478,4]
[366800858,1750462278535,-615.39,0.00025478,4]
[366800859,1750462278545,-615.39,0.00025478,4]
[366800860,1750462278555,-500.0,0.00025478,4]
[366800861,1750462278565,-500.0,0.00025478,2]
[366800862,1750462278575,-812.17,0.00025478,4]
[366800863,1750462278585,-812.17,0.00025478,4]
[366800864,1750462278594,-510.65,0.00025478,4]
[366800865,1750462278605,-517.98,0.00025478,4]
[366800866,1750462278615,-517.98,0.00025478,4]
[366800867,1750462278625,-500.0,0.00025478,4]
[366800868,1750462278635,-500.0,0.00025478,4]
[366800869,1750462278645,-500.0,0.00025478,4]
[366800870,1750462278655,-500.0,0.00025478,4]
[366800871,1750462278667,-625.73,0.00025478,4]
[366800872,1750462278678,-625.73,0.00025478,4]
[366800873,1750462278688,-151.0,0.00025479,7]
[366800874,1750462278699,-151.0,0.00025479,7]
[366800875,1750462278709,-151.0,0.00025479,7]
[366800876,1750462278719,-151.0,0.00025479,7]
[366800877,1750462278731,-151.0,0.00025479,7]
[366800878,1750462278746,-228.072477,0.00025479,7]
[366800879,1750462278756,-228.072477,0.00025479,7]
[366800880,1750462278766,-151.0,0.00025479,7]
[366800881,1750462278776,-151.0,0.00025479,7]
[366800882,1750462278786,-151.0,0.00025479,7]
[366800883,1750462278796,-302.35099,0.00025479,7]
[366800884,1750462278806,-151.0,0.00025479,7]
[366800885,1750462278816,-151.0,0.00025479,7]
[366800886,1750462278826,-302.35099,0.00025479,7]
[366800887,1750462278836,-151.0,0.00025479,7]
[366800888,1750462278846,-153.335341,0.00025479,7]
[366800889,1750462278856,-151.0,0.00025479,7]
[366800890,1750462278866,-151.0,0.00025479,7]
[366800891,1750462278875,-243.638012,0.00025479,7]
[366800892,1750462278885,-151.0,0.00025479,7]
[366800893,1750462278894,-151.0,0.00025479,7]
[366800894,1750462278904,-151.0,0.00025479,7]
[366800895,1750462278913,-151.0,0.00025479,7]
[366800896,1750462278923,-213.348491,0.00025479,7]
[366800897,1750462278933,-213.348491,0.00025479,7]
[366800898,1750462278943,-213.348491,0.00025479,7]
[366800899,1750462278952,-213.348491,0.00025479,7]
[366800900,1750462278962,-151.0,0.00025479,7]
[366800901,1750462278972,-151.0,0.00025479,7]
[366800902,1750462278981,-210.0,0.00025479,4]
[366800903,1750462278992,-346.415492,0.00025479,7]
[366800904,1750462279002,-346.415492,0.00025479,7]
[366800905,1750462279012,-151.0,0.00025479,7]
[366800906,1750462279022,-151.0,0.00025479,7]
[366800907,1750462279031,-151.0,0.00025479,7]
[366800908,1750462279042,-151.0,0.00025479,7]
[366800909,1750462279051,-1080.769212,0.00025479,7]
[366800910,1750462279062,-1080.769212,0.00025479,7]
[366800911,1750462279072,-1080.769212,0.00025479,7]
[366800912,1750462279242,-1080.769212,0.00025479,7]
[366800913,1750462279252,-159.96121,0.00025479,7]
[366800914,1750462279262,-159.96122,0.00025479,7]
[366800915,1750462279272,-176.003617,0.00025479,7]
[366800916,1750462279282,-176.00361,0.00025479,7]
[366800917,1750462279291,-534.210553,0.00025479,7]
[366800918,1750462279302,-534.210553,0.00025479,7]
[366800919,1750462279311,-534.210553,0.00025479,7]
[366800920,1750462279321,-534.210553,0.00025479,7]
[366800921,1750462279331,-151.0,0.00025479,7]
[366800922,1750462279341,-386.27376,0.00025479,7]
[366800923,1750462279351,-386.27375,0.00025479,7]
[366800924,1750462279361,-617.56557863,0.00025479,4]
[366800925,1750462279379,-490.0,0.00025479,4]
[366800926,1750462279388,-490.0,0.00025479,4]
[366800927,1750462279398,-490.0,0.00025479,4]
[366800928,1750462279408,-490.0,0.00025479,4]
[366800929,1750462279419,-499.32010568,0.00025479,4]
[366800930,1750462279428,-630.0,0.00025479,4]
[366800931,1750462279438,-490.0,0.00025479,4]
[366800932,1750462279448,-490.0,0.00025479,4]
[366800933,1750462279458,-282.586008,0.00025479,7]
[366800934,1750462279467,-282.586005,0.00025479,7]
[366800935,1750462279478,-490.0,0.00025479,4]
[366800936,1750462279487,-490.0,0.00025479,4]
[366800937,1750462279499,-490.0,0.00025479,4]
[366800938,1750462279508,-490.0,0.00025479,4]
[366800939,1750462279518,-490.0,0.00025479,4]
[366800940,1750462279528,-490.0,0.00025479,4]
[366800941,1750462279537,-490.0,0.00025479,4]
[366800942,1750462279547,-490.0,0.00025479,4]
[366800943,1750462279557,-490.0,0.00025479,4]
[366800944,1750462279567,-490.0,0.00025479,4]
[366800945,1750462279577,-490.0,0.00025479,4]
[366800946,1750462279587,-284.21686215,0.00025479,4]
[366800947,1750462279597,-490.0,0.00025479,4]
[366800948,1750462279607,-423.529522,0.00025479,7]
[366800949,1750462279616,-490.0,0.00025479,4]
[366800950,1750462279626,-423.529522,0.00025479,7]
[366800951,1750462279636,-490.0,0.00025479,4]
[366800952,1750462279647,-490.0,0.00025479,4]
[366800953,1750462279656,-490.0,0.00025479,4]
[366800954,1750462279666,-490.0,0.00025479,4]
[366800955,1750462279676,-490.0,0.00025479,4]
[366800956,1750462279686,-490.0,0.00025479,4]
[366800957,1750462279695,-490.0,0.00025479,4]
[366800958,1750462279705,-490.0,0.00025479,4]
[366800959,1750462279715,-300.0,0.00025479,4]
[366800960,1750462279725,-621.04536594,0.00025479,4]
[366800961,1750462279739,-490.0,0.00025479,4]
[366800962,1750462279754,-625.77719467,0.00025479,4]
[366800963,1750462279764,-490.0,0.00025479,4]
[366800964,1750462279773,-490.0,0.00025479,4]
[366800965,1750462279784,-490.0,0.00025479,4]
[366800966,1750462279794,-213.85516059,0.00025479,4]
[366800967,1750462279804,-1090.649831,0.00025479,7]
[366800968,1750462279815,-1090.649838,0.00025479,7]
[366800969,1750462279825,-490.0,0.00025479,4]
[366800970,1750462279835,-490.0,0.00025479,4]
[366800971,1750462279844,-490.0,0.00025479,4]
[366800972,1750462279854,-490.0,0.00025479,4]
[366800973,1750462279864,-490.0,0.00025479,4]
[366800974,1750462279873,-210.0,0.00025479,4]
[366800975,1750462279883,-490.0,0.00025479,4]
[366800976,1750462279896,-490.0,0.00025479,4]
[366800977,1750462279905,-490.0,0.00025479,4]
[366800978,1750462279915,-490.0,0.00025479,4]
[366800979,1750462279924,-490.0,0.00025479,4]
[366800980,1750462279934,-490.0,0.00025479,4]
[366800981,1750462279943,-490.0,0.00025479,4]
[366800982,1750462279953,-490.0,0.00025479,4]
[366800983,1750462279962,-490.0,0.00025479,4]
[366800984,1750462279972,-499.0,0.00025479,4]
[366800985,1750462279981,-250.0,0.00025479,4]
[366800986,1750462279991,-266.56,0.00025479,4]
[366800987,1750462280000,-490.0,0.00025479,4]
[366800988,1750462280010,-490.0,0.00025479,4]
[366800989,1750462280020,-490.0,0.00025479,4]
[366800990,1750462280029,-490.0,0.00025479,4]
[366800991,1750462280039,-490.0,0.00025479,4]
[366800992,1750462280049,-490.0,0.00025479,4]
[366800993,1750462280059,-490.0,0.00025479,4]
[366800994,1750462280068,-503.19150427,0.00025479,4]
[366800995,1750462280078,-490.0,0.00025479,4]
[366800996,1750462280087,-490.0,0.00025479,4]
[366800997,1750462280096,-490.0,0.00025479,4]
[366800998,1750462280106,-490.0,0.00025479,4]
[366800999,1750462280115,-490.0,0.00025479,4]
[366801000,1750462280125,-490.0,0.00025479,4]
[366801001,1750462280135,-490.0,0.00025479,4]
[366801002,1750462280145,-627.08,0.00025479,4]
[366801003,1750462280154,-490.0,0.00025479,4]
[366801004,1750462280164,-281.38,0.00025479,4]
[366801005,1750462280174,-490.0,0.00025479,4]
[366801006,1750462280184,-490.0,0.00025479,4]
[366801007,1750462280194,-490.0,0.00025479,4]
[366801008,1750462280204,-232.44,0.00025479,4]
[366801009,1750462280214,-490.0,0.00025479,4]
[366801010,1750462280224,-523.59,0.00025479,4]
[366801011,1750462280234,-490.0,0.00025479,4]
[366801012,1750462280245,-490.0,0.00025479,4]
[366801013,1750462280255,-490.0,0.00025479,4]
[366801014,1750462280265,-490.0,0.00025479,4]
[366801015,1750462280275,-210.0,0.00025479,4]
[366801016,1750462280284,-549.49,0.00025479,4]
[366801017,1750462280295,-490.0,0.00025479,4]
[366801018,1750462280305,-490.0,0.00025479,4]
[366801019,1750462280315,-490.0,0.00025479,4]
[366801020,1750462280325,-490.0,0.00025479,4]
[366801021,1750462280334,-339.52,0.00025479,4]
[366801022,1750462280344,-490.0,0.00025479,4]
[366801023,1750462280355,-490.0,0.00025479,4]
[366801024,1750462280365,-191.35,0.00025479,4]
[366801025,1750462280375,-490.0,0.00025479,4]
[366801026,1750462280385,-490.0,0.00025479,4]
[366801027,1750462280395,-490.0,0.00025479,4]
[366801028,1750462280405,-490.0,0.00025479,4]
[366801029,1750462280416,-490.0,0.00025479,4]
[366801030,1750462280426,-490.0,0.00025479,4]
[366801031,1750462280436,-490.0,0.00025479,4]
[366801032,1750462280446,-490.0,0.00025479,4]
[366801033,1750462280456,-490.0,0.00025479,4]
[366801034,1750462280466,-490.0,0.00025479,4]
[366801035,1750462280476,-490.0,0.00025479,4]
[366801036,1750462280486,-490.0,0.00025479,4]
[366801037,1750462280497,-490.0,0.00025479,4]
[366801038,1750462280507,-490.0,0.00025479,4]
[366801039,1750462280516,-522.91,0.00025479,4]
[366801040,1750462280527,-490.0,0.00025479,4]
[366801041,1750462280536,-161.95236179,0.00025479,4]
[366801042,1750462280546,-490.0,0.00025479,4]
[366801043,1750462280556,-490.0,0.00025479,4]
[366801044,1750462280567,-523.1,0.00025479,4]
[366801045,1750462280576,-210.0,0.00025479,4]
[366801046,1750462280587,-251.8421709,0.00025479,4]
[366801047,1750462280596,-490.0,0.00025479,4]
[366801048,1750462280606,-562.52,0.00025479,4]
[366801049,1750462280616,-490.0,0.00025479,4]
[366801050,1750462280626,-490.0,0.00025479,4]
[366801051,1750462280637,-635.38,0.00025479,4]
[366801052,1750462280647,-490.0,0.00025479,4]
[366801053,1750462280657,-151.0,0.00025479,7]
[366801054,1750462280669,-490.0,0.00025479,4]
[366801055,1750462280679,-490.0,0.00025479,4]
[366801056,1750462280689,-490.0,0.00025479,4]
[366801057,1750462280698,-490.0,0.00025479,4]
[366801058,1750462280708,-490.0,0.00025479,4]
[366801059,1750462280718,-490.0,0.00025479,4]
[366801060,1750462280729,-490.0,0.00025479,4]
[366801061,1750462280743,-490.0,0.00025479,4]
[366801062,1750462280753,-688.39,0.00025479,4]
[366801063,1750462280763,-490.0,0.00025479,4]
[366801064,1750462280773,-210.0,0.00025479,4]
[366801065,1750462280783,-490.0,0.00025479,4]
[366801066,1750462280793,-637.60251163,0.00025479,4]
[366801067,1750462280802,-151.0,0.00025479,7]
[366801068,1750462280812,-210.0,0.00025479,4]
[366801069,1750462280822,-490.0,0.00025479,4]
[366801070,1750462280832,-490.0,0.00025479,4]
[366801071,1750462280842,-490.0,0.00025479,4]
[366801072,1750462280851,-630.0,0.00025479,4]
[366801073,1750462280863,-151.0,0.00025479,7]
[366801074,1750462280873,-259.59901306,0.00025479,4]
[366801075,1750462280883,-490.0,0.00025479,4]
[366801076,1750462280893,-630.0,0.00025479,4]
[366801077,1750462280902,-630.0,0.00025479,4]
[366801078,1750462280912,-490.0,0.00025479,4]
[366801079,1750462280922,-490.0,0.00025479,4]
[366801080,1750462280932,-490.0,0.00025479,4]
[366801081,1750462280942,-490.0,0.00025479,4]
[366801082,1750462280952,-490.0,0.00025479,4]
[366801083,1750462280962,-490.0,0.00025479,4]
[366801084,1750462280972,-213.2088838,0.00025479,4]
[366801085,1750462280993,-153.1,0.00025479,4]
[366801086,1750462281006,-490.0,0.00025479,4]
[366801087,1750462281016,-720.76,0.00025479,4]
[366801088,1750462281026,-490.0,0.00025479,4]
[366801089,1750462281036,-490.0,0.00025479,4]
[366801090,1750462281046,-490.0,0.00025479,4]
[366801091,1750462281056,-490.0,0.00025479,4]
[366801092,1750462281066,-490.0,0.00025479,4]
[366801093,1750462281076,-490.0,0.00025479,4]
[366801094,1750462281086,-490.0,0.00025479,4]
[366801095,1750462281095,-490.0,0.00025479,4]
[366801096,1750462281106,-490.0,0.00025479,4]
[366801097,1750462281115,-490.0,0.00025479,4]
[366801098,1750462281125,-490.0,0.00025479,4]
[366801099,1750462281135,-490.0,0.00025479,4]
[366801100,1750462281145,-490.0,0.00025479,4]
[366801101,1750462281155,-490.0,0.00025479,4]
[366801102,1750462281165,-490.0,0.00025479,4]
[366801103,1750462281176,-490.0,0.00025479,4]
[366801104,1750462281186,-750.94,0.00025479,4]
[366801105,1750462281196,-293.41,0.00025479,4]
[366801106,1750462281206,-490.0,0.00025479,4]
[366801107,1750462281216,-490.0,0.00025479,4]
[366801108,1750462281226,-490.0,0.00025479,4]
[366801109,1750462281236,-490.0,0.00025479,2]
[366801110,1750462281246,-490.0,0.00025479,4]
[366801111,1750462281256,-490.0,0.00025479,4]
[366801112,1750462281266,-490.0,0.00025479,4]
[366801113,1750462281276,-490.0,0.00025479,4]
[366801114,1750462281285,-490.0,0.00025479,4]
[366801115,1750462281295,-490.0,0.00025479,4]
[366801116,1750462281305,-490.0,0.00025479,4]
[366801117,1750462281315,-490.0,0.00025479,4]
[366801118,1750462281326,-490.0,0.00025479,4]
[366801119,1750462281336,-490.0,0.00025479,4]
[366801120,1750462281346,-490.0,0.00025479,4]
[366801121,1750462281356,-490.0,0.00025479,4]
[366801122,1750462281366,-490.0,0.00025479,4]
[366801123,1750462281375,-490.0,0.00025479,4]
[366801124,1750462281386,-490.0,0.00025479,4]
[366801125,1750462281396,-490.0,0.00025479,4]
[366801126,1750462281406,-490.0,0.00025479,4]
[366801127,1750462281422,-490.0,0.00025479,4]
[366801128,1750462281432,-490.0,0.00025479,4]
[366801129,1750462281442,-490.0,0.00025479,4]
[366801130,1750462281453,-251.123566,0.00025479,7]
[366801131,1750462281685,-490.0,0.00025479,4]
[366801132,1750462281695,-238.01,0.00025479,4]
[366801133,1750462281705,-251.123566,0.00025479,7]
[366801134,1750462281714,-490.0,0.00025479,4]
[366801135,1750462281724,-492.27,0.00025479,4]
[366801136,1750462281736,-490.0,0.00025479,4]
[366801137,1750462281746,-490.0,0.00025479,4]
[366801138,1750462281756,-572.92,0.00025479,4]
[366801139,1750462281766,-490.0,0.00025479,4]
[366801140,1750462281775,-151.0,0.00025479,7]
[366801141,1750462281787,-490.0,0.00025479,4]
[366801142,1750462281803,-169.251099,0.00025479,7]
[366801143,1750462281814,-490.0,0.00025479,4]
[366801144,1750462281824,-523.44,0.00025479,4]
[366801145,1750462281834,-490.0,0.00025479,4]
[366801146,1750462281844,-490.0,0.00025479,4]
[366801147,1750462281854,-573.86,0.00025479,4]
[366801148,1750462281864,-490.0,0.00025479,4]
[366801149,1750462281873,-490.0,0.00025479,4]
[366801150,1750462281883,-291.19369643,0.00025479,4]
[366801151,1750462281893,-151.0,0.00025479,7]
[366801152,1750462281903,-490.0,0.00025479,4]
[366801153,1750462281913,-554.9,0.00025479,4]
[366801154,1750462281923,-490.0,0.00025479,4]
[366801155,1750462281933,-490.0,0.00025479,4]
[366801156,1750462281944,-567.59,0.00025479,4]
[366801157,1750462281954,-490.0,0.00025479,4]
[366801158,1750462281963,-490.0,0.00025479,4]
[366801159,1750462281973,-490.0,0.00025479,4]
[366801160,1750462281982,-490.0,0.00025479,4]
[366801161,1750462281992,-490.0,0.00025479,4]
[366801162,1750462282002,-490.0,0.00025479,4]
[366801163,1750462282013,-490.0,0.00025479,4]
[366801164,1750462282024,-490.0,0.00025479,4]
[366801165,1750462282034,-490.0,0.00025479,4]
[366801166,1750462282046,-758.52,0.00025479,4]
[366801167,1750462282057,-490.0,0.00025479,4]
[366801168,1750462282067,-522.05,0.00025479,4]
[366801169,1750462282078,-554.48,0.00025479,4]
[366801170,1750462282088,-490.0,0.00025479,4]
[366801171,1750462282098,-232.60302156,0.00025479,4]
[366801172,1750462282107,-490.0,0.00025479,4]
[366801173,1750462282117,-490.0,0.00025479,4]
[366801174,1750462282127,-513.0,0.00025479,4]
[366801175,1750462282137,-490.0,0.00025479,4]
[366801176,1750462282147,-490.0,0.00025479,4]
[366801177,1750462282158,-151.0,0.00025479,7]
[366801178,1750462282168,-490.0,0.00025479,4]
[366801179,1750462282178,-490.0,0.00025479,4]
[366801180,1750462282188,-253.40262987,0.00025479,4]
[366801181,1750462282199,-151.0,0.00025479,7]
[366801182,1750462282208,-490.0,0.00025479,4]
[366801183,1750462282219,-490.0,0.00025479,4]
[366801184,1750462282228,-490.0,0.00025479,4]
[366801185,1750462282238,-490.0,0.00025479,4]
[366801186,1750462282253,-490.0,0.00025479,4]
[366801187,1750462282264,-490.0,0.00025479,4]
[366801188,1750462282275,-490.0,0.00025479,4]
[366801189,1750462282286,-490.0,0.00025479,4]
[366801190,1750462282297,-490.0,0.00025479,4]
[366801191,1750462282308,-490.0,0.00025479,4]
[366801192,1750462282320,-490.0,0.00025479,4]
[366801193,1750462282330,-490.0,0.00025479,4]
[366801194,1750462282340,-490.0,0.00025479,4]
[366801195,1750462282350,-490.0,0.00025479,4]
[366801196,1750462282360,-490.0,0.00025479,4]
[366801197,1750462282371,-490.0,0.00025479,4]
[366801198,1750462282381,-490.0,0.00025479,4]
[366801199,1750462282391,-490.0,0.00025479,4]
[366801200,1750462282402,-151.0,0.00025479,7]
[366801201,1750462282412,-490.0,0.00025479,4]
[366801202,1750462282424,-490.0,0.00025479,4]
[366801203,1750462282435,-490.0,0.00025479,4]
[366801204,1750462282444,-490.0,0.00025479,4]
[366801205,1750462282455,-490.0,0.00025479,4]
[366801206,1750462282464,-207.6,0.00025479,4]
[366801207,1750462282475,-490.0,0.00025479,4]
[366801208,1750462282485,-481.34,0.00025479,4]
[366801209,1750462282495,-490.0,0.00025479,4]
[366801210,1750462282506,-561.63,0.00025479,4]
[366801211,1750462282516,-490.0,0.00025479,4]
[366801212,1750462282527,-490.0,0.00025479,4]
[366801213,1750462282537,-490.0,0.00025479,4]
[366801214,1750462282548,-254.16,0.00025479,4]
[366801215,1750462282559,-151.0,0.00025479,7]
[366801216,1750462282569,-490.0,0.00025479,4]
[366801217,1750462282579,-517.27,0.00025479,4]
[366801218,1750462282590,-423.572171,0.00025479,7]
[366801219,1750462282600,-490.0,0.00025479,4]
[366801220,1750462282610,-490.0,0.00025479,4]
[366801221,1750462282620,-490.0,0.00025479,4]
[366801222,1750462282631,-423.572171,0.00025479,7]
[366801223,1750462282641,-490.0,0.00025479,4]
[366801224,1750462282650,-490.0,0.00025479,4]
[366801225,1750462282662,-490.0,0.00025479,4]
[366801226,1750462282674,-490.0,0.00025479,4]
[366801227,1750462282685,-490.0,0.00025479,4]
[366801228,1750462282695,-490.0,0.00025479,4]
[366801229,1750462282706,-151.0,0.00025479,7]
[366801230,1750462282716,-490.0,0.00025479,4]
[366801231,1750462282726,-207.08505285,0.00025479,4]
[366801232,1750462282737,-490.0,0.00025479,4]
[366801233,1750462282757,-151.0,0.00025479,7]